[Event "7th Iberoamerican-ch 2019"]
[Site "Linares"]
[Date "2019.08.11"]
[Round "2.27"]
[White "Garcia Martin, Marta"]
[Black "Gavarrete, Nahun"]
[Result "0-1"]
[ECO "B10"]
[WhiteElo "2335"]
[BlackElo "2344"]
[Annotator "NA"]
[PlyCount "102"]
[EventDate "2019.08.10"]
[EventType "swiss"]
[EventCountry "ESP"]
[SourceTitle "playchess.com"]
[Source "ChessBase"]
[SourceQuality "1"]
[TimeControl "5400+30"]

1. e4 {[%emt 0:00:00]} c6 {[%emt 0:01:15]} 2. Nf3 {[%emt 0:00:03]} g6 {[%emt 0:00:28]} 3. d4 {[%emt 0:01:52]} Bg7 {[%emt 0:00:09]} 4. h3 {[%emt 0:02:17]} d6 {[%emt 0:00:44]} 5. Bd3 {[%emt 0:04:38]} Nf6 {[%emt 0:02:20]} 6. O-O {[%emt 0:00:53]} O-O {[%emt 0:00:31]} 7. Re1 {[%emt 0:01:09]} Nfd7 {[%emt 0:05:48]} 8. c3 {[%emt 0:08:22]} c5 {[%emt 0:07:32]} 9. Be3 {[%emt 0:19:33]} Nc6 {[%emt 0:08:37]} 10. Bf1 {[%emt 0:06:44]} b6 {[%emt 0:06:17]} 11. Nbd2 {[%emt 0:08:42]} Bb7 {[%emt 0:06:45]} 12. a3 {[%emt 0:04:26]} Qc8 {[%emt 0:10:02]} 13. b4 {[%emt 0:01:48]} a6 {[%emt 0:07:00]} 14. Rc1 {[%emt 0:09:05]} Ra7 {[%emt 0:05:08]} 15. Nb3 {[%emt 0:02:37]} Ncb8 {[%emt 0:03:59]} 16. Nfd2 {[%emt 0:06:12]} Ba8 {[%emt 0:01:51]} 17. Bg5 {[%emt 0:13:35]} Re8 {[%emt 0:01:25]} 18. Bc4 {[%emt 0:01:50]} b5 {[%emt 0:13:46]} 19. Bf1 {[%emt 0:01:09]} Rc7 {[%emt 0:02:49]} 20. dxc5 {[%emt 0:04:00]} dxc5 {[%emt 0:00:15]} 21. Bf4 {[%emt 0:00:18]} e5 {[%emt 0:03:00]} 22. Be3 {[%emt 0:00:03]} c4 {[%emt 0:00:08]} 23. Na5 {[%emt 0:01:14]} Nf6 {[%emt 0:04:08]} 24. Qc2 {[%emt 0:00:17]} Nc6 {[%emt 0:00:03]} 25. Nxc6 {[%emt 0:00:38]} Bxc6 {[%emt 0:00:04]} 26. a4 {[%emt 0:00:06]} Qb7 {[%emt 0:01:28]} 27. f3 {[%emt 0:00:55]} Nh5 {[%emt 0:01:04]} 28. Ra1 {[%emt 0:00:11]} Rd8 {[%emt 0:02:52]} 29. axb5 {[%emt 0:00:39]} axb5 {[%emt 0:00:24]} 30. Ra7 {[%emt 0:00:29]} Qb8 {[%emt 0:00:16]} 31. Rea1 {[%emt 0:00:37]} Ng3 {[%emt 0:02:45]} 32. R1a6 {[%emt 0:00:59]} Rxa7 {[%emt 0:00:48]} 33. Bxa7 {[%emt 0:00:29]} Qb7 {[%emt 0:00:31]} 34. Ra2 {[%emt 0:00:37]} Bh6 {[%emt 0:00:22]} 35. Nb1 {[%emt 0:00:28]} Qxa7+ {[%emt 0:01:38]} 36. Rxa7 {[%emt 0:00:04]} Be3+ {[%emt 0:00:12]} 37. Kh2 {[%emt 0:00:52]} Nxf1+ {[%emt 0:00:07]} 38. Kh1 {[%emt 0:00:03]} Ng3+ {[%emt 0:00:35]} 39. Kh2 {[%emt 0:00:03]} Nf1+ {[%emt 0:00:06]} 40. Kh1 {[%emt 0:00:02]} Bxa7 {[%emt 0:00:09]} 41. g4 {[%emt 0:01:52]} Ne3 {[%emt 0:00:50]} 42. Qa2 {[%emt 0:00:27]} Rd1+ {[%emt 0:00:06]} 43. Kh2 {[%emt 0:00:03]} Nf1+ {[%emt 0:00:28]} 44. Kg2 {[%emt 0:00:05]} Be3 {[%emt 0:00:17]} 45. Qa6 {[%emt 0:00:29]} Bd7 {[%emt 0:01:09]} 46. Qb7 {[%emt 0:01:05]} Bf4 {[%emt 0:00:12]} 47. h4 {[%emt 0:00:44]} Rxb1 {[%emt 0:00:53]} 48. Qxd7 {[%emt 0:00:25]} Ne3+ {[%emt 0:00:32]} 49. Kf2 {[%emt 0:00:03]} Rb2+ {[%emt 0:00:20]} 50. Kg1 {[%emt 0:00:03]} Bh2+ {[%emt 0:00:46]} 51. Kh1 {[%emt 0:00:03]} Nf1 {[%emt 0:00:17]} 0-1

[Event "7th Iberoamerican-ch 2019"]
[Site "Linares"]
[Date "2019.08.11"]
[Round "2.28"]
[White "Fier, Alexandr"]
[Black "Garcia Morales, Ivette Ale"]
[Result "1-0"]
[ECO "A18"]
[WhiteElo "2547"]
[BlackElo "1998"]
[Annotator "ChessBase"]
[PlyCount "53"]
[EventDate "2019.08.10"]
[EventType "swiss"]
[EventCountry "ESP"]
[SourceTitle "playchess.com"]
[Source "ChessBase"]
[SourceQuality "1"]
[TimeControl "5400+30"]

1. c4 {[%emt 0:00:00]} e6 {[%emt 0:00:00]} 2. Nc3 {[%emt 0:00:00]} Nf6 {[%emt 0:00:00]} 3. e4 {[%emt 0:00:00]} d5 {[%emt 0:05:19]} 4. cxd5 {[%emt 0:00:00]} exd5 {[%emt 0:00:05]} 5. e5 {[%emt 0:00:00]} Ng4 {[%emt 0:00:27]} 6. d4 {[%emt 0:00:18]} c5 {[%emt 0:03:34]} 7. Nf3 {[%emt 0:02:56]} Nc6 {[%emt 0:00:43]} 8. Bb5 {[%emt 0:01:49]} cxd4 {[%emt 0:03:35]} 9. Qxd4 {[%emt 0:00:46]} a6 {[%emt 0:09:53]} 10. Bxc6+ {[%emt 0:00:53]} bxc6 {[%emt 0:00:03]} 11. h3 {[%emt 0:02:38]} Nh6 {[%emt 0:00:17]} 12. Bxh6 {[%emt 0:02:36]} gxh6 {[%emt 0:00:10]} 13. e6 {[%emt 0:00:05]} f6 {[%emt 0:02:09]} 14. O-O {[%emt 0:07:00]} Rg8 {[%emt 0:10:19]} 15. Rfe1 {[%emt 0:00:36]} Qe7 {[%emt 0:02:51]} 16. Qa4 {[%emt 0:01:29]} Qd6 {[%emt 0:04:16]} 17. Nd4 {[%emt 0:01:34]} Be7 {[%emt 0:08:21]} 18. Nxc6 {[%emt 0:04:22]} Bxe6 {[%emt 0:05:34]} 19. Nd4+ {[%emt 0:03:16]} Bd7 {[%emt 0:00:46]} 20. Nf5 {[%emt 0:00:05]} Bxa4 {[%emt 0:00:45]} 21. Nxd6+ {[%emt 0:00:04]} Kd7 {[%emt 0:04:23]} 22. Nf5 {[%emt 0:00:06]} Bb4 {[%emt 0:00:06]} 23. Nxa4 {[%emt 0:00:04]} Bxe1 {[%emt 0:00:04]} 24. Nb6+ {[%emt 0:01:16]} Kc6 {[%emt 0:05:12]} 25. Nxa8 {[%emt 0:00:04]} Bb4 {[%emt 0:00:14]} 26. a3 {[%emt 0:00:06]} Bc5 {[%emt 0:01:03]} 27. Rc1 {[%emt 0:00:27]} 1-0

[Event "7th Iberoamerican-ch 2019"]
[Site "Linares"]
[Date "2019.08.11"]
[Round "2.29"]
[White "Roselli Mailhe, Bernardo"]
[Black "Arroyo Rodriguez, Jesus"]
[Result "1-0"]
[ECO "A58"]
[WhiteElo "2471"]
[BlackElo "2121"]
[Annotator "ChessBase"]
[PlyCount "99"]
[EventDate "2019.08.10"]
[EventType "swiss"]
[EventCountry "ESP"]
[SourceTitle "playchess.com"]
[Source "ChessBase"]
[SourceQuality "1"]
[TimeControl "5400+30"]

1. d4 {[%emt 0:00:00]} Nf6 {[%emt 0:01:59]} 2. c4 {[%emt 0:00:00]} c5 {[%emt 0:00:07]} 3. d5 {[%emt 0:00:00]} b5 {[%emt 0:00:06]} 4. cxb5 {[%emt 0:00:00]} a6 {[%emt 0:00:10]} 5. bxa6 {[%emt 0:00:00]} g6 {[%emt 0:00:08]} 6. Nc3 {[%emt 0:00:00]} Bg7 {[%emt 0:00:07]} 7. a7 {[%emt 0:00:20]} Rxa7 {[%emt 0:00:07]} 8. e4 {[%emt 0:00:05]} O-O {[%emt 0:01:02]} 9. Nf3 {[%emt 0:00:46]} e6 {[%emt 0:02:51]} 10. Be2 {[%emt 0:04:13]} exd5 {[%emt 0:09:37]} 11. exd5 {[%emt 0:00:06]} Ra8 {[%emt 0:02:58]} 12. O-O {[%emt 0:05:16]} d6 {[%emt 0:01:42]} 13. Bf4 {[%emt 0:10:30]} Nh5 {[%emt 0:03:40]} 14. Bg5 {[%emt 0:03:34]} Qb6 {[%emt 0:02:48]} 15. Qb3 {[%emt 0:07:12]} Nd7 {[%emt 0:20:32]} 16. Nd2 {[%emt 0:08:03]} Nhf6 {[%emt 0:04:07]} 17. Nc4 {[%emt 0:05:18]} Qb4 {[%emt 0:06:24]} 18. Qc2 {[%emt 0:08:13]} Qb8 {[%emt 0:08:22]} 19. Bf4 {[%emt 0:01:31]} Ne5 {[%emt 0:01:55]} 20. Nxe5 {[%emt 0:03:03]} dxe5 {[%emt 0:00:29]} 21. Be3 {[%emt 0:00:07]} Bf5 {[%emt 0:03:44]} 22. Qd2 {[%emt 0:01:53]} Rc8 {[%emt 0:03:56]} 23. f3 {[%emt 0:05:39]} h5 {[%emt 0:02:34]} 24. b3 {[%emt 0:02:09]} e4 {[%emt 0:01:46]} 25. Rac1 {[%emt 0:07:39]} Qb4 {[%emt 0:04:22]} 26. Bc4 {[%emt 0:02:18]} exf3 {[%emt 0:01:05]} 27. gxf3 {[%emt 0:00:06]} Nd7 {[%emt 0:02:03]} 28. Na4 {[%emt 0:05:55]} Bd4 {[%emt 0:00:50]} 29. Kg2 {[%emt 0:00:44]} Qxd2+ {[%emt 0:05:03]} 30. Bxd2 {[%emt 0:00:04]} Ne5 {[%emt 0:00:29]} 31. Be2 {[%emt 0:04:47]} c4 {[%emt 0:01:07]} 32. Bc3 {[%emt 0:01:55]} Bxc3 {[%emt 0:01:27]} 33. Rxc3 {[%emt 0:00:15]} Rd8 {[%emt 0:01:37]} 34. Rd1 {[%emt 0:01:26]} Ra5 {[%emt 0:01:27]} 35. Bxc4 {[%emt 0:03:59]} Nxc4 {[%emt 0:00:18]} 36. Rxc4 {[%emt 0:00:06]} Raxd5 {[%emt 0:00:16]} 37. Rxd5 {[%emt 0:00:07]} Rxd5 {[%emt 0:00:02]} 38. Nc3 {[%emt 0:00:48]} Rd2+ {[%emt 0:00:20]} 39. Kg3 {[%emt 0:00:05]} Be6 {[%emt 0:03:39]} 40. Rc5 {[%emt 0:02:08]} Kg7 {[%emt 0:01:49]} 41. h4 {[%emt 0:00:07]} Rb2 {[%emt 0:00:24]} 42. Ra5 {[%emt 0:00:49]} Bf5 {[%emt 0:01:33]} 43. Ra7 {[%emt 0:01:36]} Rc2 {[%emt 0:00:54]} 44. Rc7 {[%emt 0:00:49]} Rc1 {[%emt 0:00:12]} 45. b4 {[%emt 0:00:54]} Rh1 {[%emt 0:00:53]} 46. Rc4 {[%emt 0:03:08]} f6 {[%emt 0:00:28]} 47. b5 {[%emt 0:00:50]} Rh3+ {[%emt 0:00:46]} 48. Kg2 {[%emt 0:00:09]} g5 {[%emt 0:00:45]} 49. hxg5 {[%emt 0:00:39]} fxg5 {[%emt 0:00:38]} 50. Rc5 {[%emt 0:00:13]} 1-0

[Event "7th Iberoamerican-ch 2019"]
[Site "Linares"]
[Date "2019.08.11"]
[Round "2.30"]
[White "Fluvia Poyatos, Jordi"]
[Black "Carrasco Sagredo, Manuel"]
[Result "1-0"]
[ECO "C45"]
[WhiteElo "2455"]
[BlackElo "2106"]
[Annotator "ChessBase"]
[PlyCount "64"]
[EventDate "2019.08.10"]
[EventType "swiss"]
[EventCountry "ESP"]
[SourceTitle "playchess.com"]
[Source "ChessBase"]
[SourceQuality "1"]
[TimeControl "5400+30"]

1. e4 {[%emt 0:00:00]} e5 {[%emt 0:00:14]} 2. Nf3 {[%emt 0:00:40]} Nc6 {[%emt 0:00:32]} 3. d4 {[%emt 0:03:08]} exd4 {[%emt 0:00:25]} 4. Nxd4 {[%emt 0:00:08]} Nf6 {[%emt 0:01:06]} 5. Nxc6 {[%emt 0:00:27]} bxc6 {[%emt 0:00:16]} 6. e5 {[%emt 0:00:07]} Qe7 {[%emt 0:01:03]} 7. Qe2 {[%emt 0:00:13]} Nd5 {[%emt 0:00:06]} 8. c4 {[%emt 0:00:32]} Nb6 {[%emt 0:00:51]} 9. Nc3 {[%emt 0:00:50]} Ba6 {[%emt 0:01:36]} 10. Qe4 {[%emt 0:00:48]} Qe6 {[%emt 0:00:29]} 11. b3 {[%emt 0:00:27]} Bb4 {[%emt 0:01:43]} 12. Bd2 {[%emt 0:00:12]} d5 {[%emt 0:04:10]} 13. cxd5 {[%emt 0:04:05]} Nxd5 {[%emt 0:10:24]} 14. Bxa6 {[%emt 0:08:59]} Bxc3 {[%emt 0:13:41]} 15. Bxc3 {[%emt 0:00:19]} Nxc3 {[%emt 0:00:23]} 16. Qd4 {[%emt 0:00:31]} c5 {[%emt 0:16:47]} 17. Qxc3 {[%emt 0:02:16]} Qxa6 {[%emt 0:00:05]} 18. Qxc5 {[%emt 0:01:01]} Rd8 {[%emt 0:02:05]} 19. h4 {[%emt 0:03:43]} h5 {[%emt 0:12:00]} 20. Rh3 {[%emt 0:03:13]} Rh6 {[%emt 0:00:21]} 21. Rc1 {[%emt 0:10:43]} c6 {[%emt 0:05:53]} 22. a4 {[%emt 0:06:58]} Rg6 {[%emt 0:01:29]} 23. Re3 {[%emt 0:13:27]} Rd3 {[%emt 0:06:11]} 24. g3 {[%emt 0:03:11]} Re6 {[%emt 0:01:46]} 25. f4 {[%emt 0:04:43]} Rg6 {[%emt 0:00:24]} 26. Rc3 {[%emt 0:02:01]} Rd5 {[%emt 0:00:25]} 27. Qc4 {[%emt 0:01:00]} Qxc4 {[%emt 0:14:53]} 28. Rxc4 {[%emt 0:00:33]} a5 {[%emt 0:00:54]} 29. Ke2 {[%emt 0:03:12]} c5 {[%emt 0:01:48]} 30. Kf3 {[%emt 0:02:12]} Rc6 {[%emt 0:02:26]} 31. Rec3 {[%emt 0:01:34]} Kd7 {[%emt 0:00:31]} 32. Ke4 {[%emt 0:01:00]} Rd1 1-0

[Event "7th Iberoamerican-ch 2019"]
[Site "Linares"]
[Date "2019.08.11"]
[Round "2.31"]
[White "Guerrero Vargas, Andres Jesus"]
[Black "Luque Saiz, Andres"]
[Result "1/2-1/2"]
[ECO "D15"]
[WhiteElo "2331"]
[BlackElo "1988"]
[Annotator "NA"]
[PlyCount "70"]
[EventDate "2019.08.10"]
[EventType "swiss"]
[EventCountry "ESP"]
[SourceTitle "playchess.com"]
[Source "ChessBase"]
[SourceQuality "1"]
[TimeControl "5400+30"]

1. Nf3 {[%emt 0:00:00]} Nf6 {[%emt 0:00:00]} 2. c4 {[%emt 0:00:00]} c6 {[%emt 0:00:13]} 3. Nc3 {[%emt 0:00:00]} d5 {[%emt 0:00:16]} 4. d4 {[%emt 0:00:00]} dxc4 {[%emt 0:00:12]} 5. e4 {[%emt 0:01:39]} b5 {[%emt 0:00:35]} 6. Be2 {[%emt 0:00:13]} b4 {[%emt 0:02:03]} 7. Na4 {[%emt 0:00:07]} Nxe4 {[%emt 0:01:55]} 8. Bxc4 {[%emt 0:00:09]} Nd6 {[%emt 0:10:54]} 9. Bb3 {[%emt 0:00:07]} e6 {[%emt 0:00:50]} 10. O-O {[%emt 0:00:12]} Be7 {[%emt 0:00:46]} 11. Ne5 {[%emt 0:11:53]} O-O {[%emt 0:06:10]} 12. Nc5 {[%emt 0:13:29]} Nf5 {[%emt 0:11:30]} 13. Nxf7 {[%emt 0:00:07]} Qxd4 {[%emt 0:04:38]} 14. Nxe6 {[%emt 0:01:26]} Qxd1 {[%emt 0:00:17]} 15. Rxd1 {[%emt 0:00:21]} Bxe6 {[%emt 0:00:50]} 16. Bxe6 {[%emt 0:00:06]} Rxf7 {[%emt 0:00:03]} 17. a3 {[%emt 0:11:45]} bxa3 {[%emt 0:06:38]} 18. g4 {[%emt 0:08:28]} Nd6 {[%emt 0:04:41]} 19. Rxa3 {[%emt 0:01:26]} Kf8 {[%emt 0:00:20]} 20. Bxf7 {[%emt 0:01:38]} Nxf7 {[%emt 0:01:08]} 21. Rc3 {[%emt 0:10:16]} a5 {[%emt 0:05:54]} 22. Be3 {[%emt 0:02:23]} a4 {[%emt 0:13:35]} 23. h3 {[%emt 0:05:53]} Ra5 {[%emt 0:03:00]} 24. Rc4 {[%emt 0:01:48]} Bf6 {[%emt 0:11:45]} 25. Bc5+ {[%emt 0:13:57]} Be7 {[%emt 0:08:31]} 26. Bd4 {[%emt 0:01:20]} Nd6 {[%emt 0:00:52]} 27. Rc3 {[%emt 0:03:00]} Rd5 {[%emt 0:01:02]} 28. Rf3+ {[%emt 0:01:24]} Ke8 {[%emt 0:01:02]} 29. Rfd3 {[%emt 0:06:44]} g6 {[%emt 0:01:05]} 30. Bh8 {[%emt 0:01:13]} Rxd3 {[%emt 0:00:17]} 31. Rxd3 {[%emt 0:00:02]} Nd7 {[%emt 0:01:04]} 32. Re3 {[%emt 0:01:00]} Kf7 {[%emt 0:01:01]} 33. Rf3+ {[%emt 0:01:07]} Ke6 {[%emt 0:00:21]} 34. Re3+ {[%emt 0:00:11]} Kf7 {[%emt 0:00:23]} 35. Kf1 {[%emt 0:02:42]} Nc4 {[%emt 0:01:31]} 1/2-1/2

[Event "7th Iberoamerican-ch 2019"]
[Site "Linares"]
[Date "2019.08.11"]
[Round "2.32"]
[White "Ingunza Curro, Andres"]
[Black "Serarols Mabras, Bernat"]
[Result "1/2-1/2"]
[ECO "B12"]
[WhiteElo "2131"]
[BlackElo "2381"]
[Annotator "NA"]
[PlyCount "87"]
[EventDate "2019.08.10"]
[EventType "swiss"]
[EventCountry "ESP"]
[SourceTitle "playchess.com"]
[Source "ChessBase"]
[SourceQuality "1"]
[TimeControl "5400+30"]

1. e4 {[%emt 0:01:56]} c6 {[%emt 0:00:00]} 2. d4 {[%emt 0:00:26]} d5 {[%emt 0:00:00]} 3. e5 {[%emt 0:01:38]} Bf5 {[%emt 0:00:04]} 4. h4 {[%emt 0:01:41]} h5 {[%emt 0:00:08]} 5. Bd3 {[%emt 0:00:01]} Bxd3 {[%emt 0:00:09]} 6. Qxd3 {[%emt 0:00:02]} Qa5+ {[%emt 0:00:10]} 7. Nd2 {[%emt 0:01:27]} e6 {[%emt 0:01:04]} 8. Ngf3 {[%emt 0:01:19]} Qa6 {[%emt 0:00:07]} 9. c4 {[%emt 0:00:49]} Ne7 {[%emt 0:00:09]} 10. O-O {[%emt 0:01:11]} Nf5 {[%emt 0:00:07]} 11. b3 {[%emt 0:02:59]} Nd7 {[%emt 0:01:56]} 12. Qc2 {[%emt 0:05:01]} Be7 {[%emt 0:01:27]} 13. g3 {[%emt 0:01:30]} O-O {[%emt 0:02:39]} 14. a4 {[%emt 0:09:55]} b6 {[%emt 0:11:08]} 15. Bb2 {[%emt 0:16:57]} Rac8 {[%emt 0:05:29]} 16. Rfc1 {[%emt 0:08:21]} Qb7 {[%emt 0:10:23]} 17. cxd5 {[%emt 0:05:06]} cxd5 {[%emt 0:00:29]} 18. Qd3 {[%emt 0:00:17]} Nb8 {[%emt 0:01:40]} 19. Nf1 {[%emt 0:02:23]} Nc6 {[%emt 0:12:53]} 20. Ne3 {[%emt 0:01:16]} Nb4 {[%emt 0:03:38]} 21. Qd2 {[%emt 0:02:35]} Nxe3 {[%emt 0:00:17]} 22. fxe3 {[%emt 0:00:04]} Nc6 {[%emt 0:00:49]} 23. Qe2 {[%emt 0:01:51]} f6 {[%emt 0:11:36]} 24. exf6 {[%emt 0:02:47]} Bxf6 {[%emt 0:03:20]} 25. Kg2 {[%emt 0:06:21]} Qf7 {[%emt 0:07:29]} 26. Ba3 {[%emt 0:08:37]} Rfe8 {[%emt 0:04:10]} 27. Qd3 {[%emt 0:05:59]} Qd7 {[%emt 0:09:06]} 28. Qg6 {[%emt 0:06:29]} e5 {[%emt 0:07:30]} 29. dxe5 {[%emt 0:00:04]} Nxe5 {[%emt 0:00:12]} 30. Nxe5 {[%emt 0:00:06]} Rxe5 {[%emt 0:00:46]} 31. Bb2 {[%emt 0:03:21]} Rf5 {[%emt 0:02:39]} 32. Bxf6 {[%emt 0:00:27]} Rxf6 {[%emt 0:00:13]} 33. Qxh5 {[%emt 0:00:29]} Rfc6 {[%emt 0:01:26]} 34. Rxc6 {[%emt 0:01:55]} Qxc6 {[%emt 0:00:04]} 35. Rf1 {[%emt 0:01:34]} d4+ {[%emt 0:02:14]} 36. Kh2 {[%emt 0:00:26]} Qe6 {[%emt 0:01:08]} 37. exd4 {[%emt 0:00:35]} Rc2+ {[%emt 0:00:43]} 38. Kg1 {[%emt 0:00:04]} Rc3 {[%emt 0:01:03]} 39. Kh2 {[%emt 0:00:53]} Rc2+ {[%emt 0:00:11]} 40. Kg1 {[%emt 0:00:04]} Rc3 {[%emt 0:00:02]} 41. Kh2 {[%emt 0:00:32]} Qe4 {[%emt 0:00:44]} 42. Qf7+ {[%emt 0:00:17]} Kh7 {[%emt 0:00:05]} 43. Qh5+ {[%emt 0:00:17]} Kg8 {[%emt 0:00:03]} 44. Qf7+ 1/2-1/2

[Event "7th Iberoamerican-ch 2019"]
[Site "Linares"]
[Date "2019.08.11"]
[Round "2.33"]
[White "Martinez-Conde Hernandez, Carlos"]
[Black "Torres Sanchez, Jose"]
[Result "1-0"]
[ECO "B32"]
[WhiteElo "2085"]
[BlackElo "2267"]
[Annotator "NA"]
[PlyCount "93"]
[EventDate "2019.08.10"]
[EventType "swiss"]
[EventCountry "ESP"]
[SourceTitle "playchess.com"]
[Source "ChessBase"]
[SourceQuality "1"]
[TimeControl "5400+30"]

1. e4 {[%emt 0:00:00]} c5 {[%emt 0:00:00]} 2. Nf3 {[%emt 0:00:00]} Nc6 {[%emt 0:00:00]} 3. d4 {[%emt 0:00:04]} cxd4 {[%emt 0:00:00]} 4. Nxd4 {[%emt 0:00:11]} Qb6 {[%emt 0:00:05]} 5. Nb3 {[%emt 0:01:21]} Nf6 {[%emt 0:00:11]} 6. Nc3 {[%emt 0:01:50]} e6 {[%emt 0:00:14]} 7. Bd3 {[%emt 0:01:10]} d6 {[%emt 0:02:19]} 8. O-O {[%emt 0:01:29]} a6 {[%emt 0:00:06]} 9. a4 {[%emt 0:02:38]} Be7 {[%emt 0:00:39]} 10. a5 {[%emt 0:02:37]} Qc7 {[%emt 0:01:13]} 11. Be3 {[%emt 0:00:16]} O-O {[%emt 0:01:08]} 12. Na4 {[%emt 0:00:54]} Nd7 {[%emt 0:00:11]} 13. c3 {[%emt 0:07:57]} Rb8 {[%emt 0:03:49]} 14. Nb6 {[%emt 0:02:27]} Re8 {[%emt 0:02:35]} 15. Nxd7 {[%emt 0:05:43]} Bxd7 {[%emt 0:00:17]} 16. Bb6 {[%emt 0:00:07]} Qc8 {[%emt 0:00:14]} 17. Be2 {[%emt 0:02:12]} Ne5 {[%emt 0:00:43]} 18. Nd2 {[%emt 0:09:49]} Bc6 {[%emt 0:01:08]} 19. f3 {[%emt 0:00:24]} d5 {[%emt 0:03:38]} 20. Ba7 {[%emt 0:04:00]} Ra8 {[%emt 0:00:23]} 21. Bd4 {[%emt 0:00:02]} Qc7 {[%emt 0:11:07]} 22. f4 {[%emt 0:01:52]} Nc4 {[%emt 0:00:10]} 23. Bxc4 {[%emt 0:09:02]} dxc4 {[%emt 0:00:07]} 24. Qe2 {[%emt 0:00:05]} Bb5 {[%emt 0:00:46]} 25. Qg4 {[%emt 0:00:01]} Bf8 {[%emt 0:00:47]} 26. Rf3 {[%emt 0:00:36]} Rad8 {[%emt 0:18:35]} 27. Rg3 {[%emt 0:05:38]} f6 {[%emt 0:09:33]} 28. Kh1 {[%emt 0:06:38]} Rxd4 {[%emt 0:08:23]} 29. cxd4 {[%emt 0:00:09]} Bb4 {[%emt 0:00:39]} 30. Nxc4 {[%emt 0:10:28]} Re7 {[%emt 0:11:07]} 31. Ne3 {[%emt 0:02:11]} h5 {[%emt 0:03:56]} 32. Qh4 {[%emt 0:05:15]} Bd2 {[%emt 0:01:22]} 33. e5 {[%emt 0:03:45]} fxe5 {[%emt 0:00:59]} 34. fxe5 {[%emt 0:00:56]} Rf7 {[%emt 0:02:28]} 35. Qxh5 {[%emt 0:01:48]} Bc1 {[%emt 0:01:25]} 36. h3 {[%emt 0:03:32]} Bxb2 {[%emt 0:01:16]} 37. Rd1 {[%emt 0:01:48]} Ba4 {[%emt 0:01:30]} 38. Rg1 {[%emt 0:00:01]} Bxd4 {[%emt 0:00:54]} 39. Ng4 {[%emt 0:00:02]} Kf8 {[%emt 0:00:32]} 40. Qh8+ {[%emt 0:01:01]} Ke7 {[%emt 0:00:07]} 41. Qh4+ {[%emt 0:00:02]} Kf8 {[%emt 0:01:53]} 42. Qh8+ {[%emt 0:00:08]} Ke7 {[%emt 0:00:11]} 43. Qh4+ {[%emt 0:00:02]} Kf8 {[%emt 0:00:12]} 44. Rd3 {[%emt 0:00:56]} Rf4 {[%emt 0:03:51]} 45. Qh8+ {[%emt 0:01:15]} Kf7 {[%emt 0:00:05]} 46. Nh6+ {[%emt 0:00:11]} Kg6 {[%emt 0:00:07]} 47. Rg3+ {[%emt 0:00:05]} 1-0

[Event "7th Iberoamerican-ch 2019"]
[Site "Linares"]
[Date "2019.08.11"]
[Round "2.34"]
[White "Garcia, Jhoel"]
[Black "Paiva, Henrique M A Alberga"]
[Result "0-1"]
[ECO "A30"]
[WhiteElo "2290"]
[BlackElo "2122"]
[Annotator "NA"]
[PlyCount "104"]
[EventDate "2019.08.10"]
[EventType "swiss"]
[EventCountry "ESP"]
[SourceTitle "playchess.com"]
[Source "ChessBase"]
[SourceQuality "1"]
[TimeControl "5400+30"]

1. c4 {[%emt 0:00:58]} c5 {[%emt 0:00:37]} 2. Nf3 {[%emt 0:02:25]} Nf6 {[%emt 0:02:36]} 3. g3 {[%emt 0:00:48]} e6 {[%emt 0:01:55]} 4. d4 {[%emt 0:02:06]} d5 {[%emt 0:07:15]} 5. Bg2 {[%emt 0:02:02]} Nc6 {[%emt 0:03:41]} 6. O-O {[%emt 0:00:42]} cxd4 {[%emt 0:01:10]} 7. Nxd4 {[%emt 0:00:23]} Be7 {[%emt 0:00:05]} 8. Nc3 {[%emt 0:00:30]} O-O {[%emt 0:00:24]} 9. cxd5 {[%emt 0:01:15]} exd5 {[%emt 0:00:06]} 10. b3 {[%emt 0:14:30]} Qa5 {[%emt 0:16:24]} 11. Bb2 {[%emt 0:03:08]} Rd8 {[%emt 0:01:51]} 12. a3 {[%emt 0:00:11]} Nxd4 {[%emt 0:03:34]} 13. Qxd4 {[%emt 0:00:30]} Be6 {[%emt 0:00:03]} 14. e3 {[%emt 0:05:27]} Rac8 {[%emt 0:05:49]} 15. Rfc1 {[%emt 0:00:30]} Bc5 {[%emt 0:07:55]} 16. Qh4 {[%emt 0:10:44]} Be7 {[%emt 0:03:38]} 17. b4 {[%emt 0:02:16]} Qa6 {[%emt 0:02:09]} 18. Bf1 {[%emt 0:00:51]} Qd6 {[%emt 0:03:39]} 19. Nb5 {[%emt 0:02:56]} Qd7 {[%emt 0:00:18]} 20. Qf4 {[%emt 0:14:50]} a6 {[%emt 0:02:12]} 21. Nd4 {[%emt 0:00:07]} Bg4 {[%emt 0:05:53]} 22. f3 {[%emt 0:14:05]} Be6 {[%emt 0:09:29]} 23. Bd3 {[%emt 0:06:35]} Bd6 {[%emt 0:04:37]} 24. Qh4 {[%emt 0:01:20]} h6 {[%emt 0:00:07]} 25. g4 {[%emt 0:02:03]} Qe7 {[%emt 0:04:16]} 26. Re1 {[%emt 0:08:06]} Bd7 {[%emt 0:00:47]} 27. Bf5 {[%emt 0:00:31]} Rc4 {[%emt 0:02:22]} 28. Bd3 {[%emt 0:02:38]} Rc7 {[%emt 0:01:59]} 29. g5 {[%emt 0:01:25]} hxg5 {[%emt 0:00:07]} 30. Qxg5 {[%emt 0:00:04]} Ne8 {[%emt 0:06:35]} 31. Qh5 {[%emt 0:00:24]} Nf6 {[%emt 0:00:16]} 32. Qh4 {[%emt 0:00:27]} Qe5 {[%emt 0:01:35]} 33. Kh1 {[%emt 0:00:44]} Qh5 {[%emt 0:00:20]} 34. Qxh5 {[%emt 0:00:29]} Nxh5 {[%emt 0:00:06]} 35. Rg1 {[%emt 0:00:09]} Kf8 {[%emt 0:00:55]} 36. Rg5 {[%emt 0:00:14]} Nf6 {[%emt 0:00:35]} 37. Rag1 {[%emt 0:00:08]} g6 {[%emt 0:00:11]} 38. Nf5 {[%emt 0:01:50]} Bxf5 {[%emt 0:00:04]} 39. Bxf6 {[%emt 0:00:22]} Bxd3 {[%emt 0:00:08]} 40. Bxd8 {[%emt 0:00:10]} Rc2 {[%emt 0:00:03]} 41. R5g2 {[%emt 0:00:30]} Rc3 {[%emt 0:01:11]} 42. Bf6 {[%emt 0:00:33]} Rxa3 {[%emt 0:00:12]} 43. h4 {[%emt 0:00:46]} Ke8 {[%emt 0:02:07]} 44. Rg5 {[%emt 0:00:10]} Bf5 {[%emt 0:00:12]} 45. Rxf5 {[%emt 0:00:58]} gxf5 {[%emt 0:00:11]} 46. Bd4 {[%emt 0:00:29]} f4 {[%emt 0:01:17]} 47. h5 {[%emt 0:00:18]} fxe3 {[%emt 0:00:04]} 48. Re1 {[%emt 0:00:50]} Bf4 {[%emt 0:01:11]} 49. Re2 {[%emt 0:00:18]} Rd3 {[%emt 0:00:09]} 50. Bc5 {[%emt 0:00:44]} d4 {[%emt 0:00:57]} 51. Kg2 {[%emt 0:00:27]} Rd2 {[%emt 0:00:18]} 52. Kf1 {[%emt 0:00:10]} d3 {[%emt 0:00:36]} 0-1